[Event "Titled Tuesday Blitz May 4 2021"]
[White "Sokac, Marko"]
[Black "Iljushina, Olga"]
[WhiteFideId "14531356"]
[BlackFideId "4152280"]
[WhiteElo "2331"]
[BlackElo "1967"]
[Result "0-1"]
[Round "01"]
[TimeControl "180+1"]
[Date "2021.05.04"]
[WhiteClock "0:00:01"]
[BlackClock "0:00:08"]

1. e4 {[%clk 0:03:00]}  c5 {[%clk 0:02:49]} 2. a3 {[%clk 0:02:32]}  g6 {[%clk 0:02:42]} 3. b4 {[%clk 0:02:32]}  Bg7 {[%clk 0:02:41]} 4. Nc3 {[%clk 0:02:32]}  b6 {[%clk 0:02:39]} 5. Rb1 {[%clk 0:02:31]}  Nc6 {[%clk 0:02:33]} 6. bxc5 {[%clk 0:02:30]}  bxc5 {[%clk 0:02:32]} 7. Nf3 {[%clk 0:02:31]}  Qa5 {[%clk 0:02:23]} 8. Bb2 {[%clk 0:02:30]}  Rb8 {[%clk 0:02:20]} 9. Ba1 {[%clk 0:02:27]}  Rxb1 {[%clk 0:02:14]} 10. Qxb1 {[%clk 0:02:28]}  Qxa3 {[%clk 0:02:10]} 11. Bc4 {[%clk 0:02:25]}  Nh6 {[%clk 0:02:02]} 12. O-O {[%clk 0:02:13]}  O-O {[%clk 0:01:58]} 13. Bb2 {[%clk 0:02:04]}  Qb4 {[%clk 0:01:52]} 14. Qa2 {[%clk 0:02:03]}  Na5 {[%clk 0:01:46]} 15. Nd5 {[%clk 0:01:34]}  Qxb2 {[%clk 0:01:24]} 16. Nxe7+ {[%clk 0:01:30]}  Kh8 {[%clk 0:01:24]} 17. Qxa5 {[%clk 0:01:31]}  Qxc2 {[%clk 0:01:20]} 18. Qxc5 {[%clk 0:01:12]}  Ba6 {[%clk 0:01:06]} 19. d3 {[%clk 0:01:12]}  Bxc4 {[%clk 0:01:04]} 20. dxc4 {[%clk 0:01:13]}  Qxe4 {[%clk 0:01:01]} 21. Re1 {[%clk 0:01:04]}  Qb7 {[%clk 0:00:55]} 22. Qd6 {[%clk 0:00:48]}  a5 {[%clk 0:00:40]} 23. Nd5 {[%clk 0:00:37]}  a4 {[%clk 0:00:36]} 24. Ne5 {[%clk 0:00:27]}  Nf5 {[%clk 0:00:24]} 25. Nxf7+ {[%clk 0:00:23]}  Kg8 {[%clk 0:00:16]} 26. Nf6+ {[%clk 0:00:09]}  Kxf7 {[%clk 0:00:11]} 27. Qd5+ {[%clk 0:00:04]}  Qxd5 {[%clk 0:00:09]} 28. Nxd5 {[%clk 0:00:04]}  a3 {[%clk 0:00:08]} 29. Nb6 {[%clk 0:00:03]}  Rb8 {[%clk 0:00:08]} 30. Nxd7 {[%clk 0:00:03]}  Ra8 {[%clk 0:00:09]} 31. Nb6 {[%clk 0:00:03]}  Ra6 {[%clk 0:00:08]} 32. Nd5 {[%clk 0:00:03]}  a2 {[%clk 0:00:08]} 33. Nc7 {[%clk 0:00:03]}  a1=Q {[%clk 0:00:08]} 34. Kf1 {[%clk 0:00:01]} 0-1


[Site "https://www.chess.com"]

[Event "Titled Tuesday Blitz May 4 2021"]
[White "Sokolovsky, Yahli"]
[Black "Hess, Robert"]
[WhiteFideId "2820242"]
[BlackFideId "2022036"]
[WhiteElo "1770"]
[BlackElo "2557"]
[Result "1/2-1/2"]
[Round "01"]
[TimeControl "180+1"]
[Date "2021.05.04"]
[WhiteClock "0:00:12"]
[BlackClock "0:00:13"]

1. b3 {[%clk 0:02:59]}  Nf6 {[%clk 0:02:57]} 2. Bb2 {[%clk 0:02:59]}  g6 {[%clk 0:02:58]} 3. e4 {[%clk 0:02:59]}  Bg7 {[%clk 0:02:57]} 4. e5 {[%clk 0:02:59]}  Nd5 {[%clk 0:02:57]} 5. d4 {[%clk 0:02:59]}  d6 {[%clk 0:02:57]} 6. c4 {[%clk 0:02:59]}  Nb6 {[%clk 0:02:56]} 7. exd6 {[%clk 0:02:59]}  exd6 {[%clk 0:02:53]} 8. Nf3 {[%clk 0:02:59]}  O-O {[%clk 0:02:53]} 9. Be2 {[%clk 0:02:59]}  d5 {[%clk 0:02:36]} 10. c5 {[%clk 0:02:59]}  N6d7 {[%clk 0:02:36]} 11. Nc3 {[%clk 0:02:52]}  Nc6 {[%clk 0:02:30]} 12. O-O {[%clk 0:02:41]}  Re8 {[%clk 0:02:22]} 13. Re1 {[%clk 0:02:31]}  Nf8 {[%clk 0:02:21]} 14. h3 {[%clk 0:02:21]}  Bf5 {[%clk 0:02:17]} 15. a3 {[%clk 0:02:17]}  Ne6 {[%clk 0:02:10]} 16. Bb5 {[%clk 0:02:12]}  a6 {[%clk 0:02:04]} 17. Bxc6 {[%clk 0:02:12]}  bxc6 {[%clk 0:02:05]} 18. g4 {[%clk 0:01:56]}  Be4 {[%clk 0:01:56]} 19. Nxe4 {[%clk 0:01:57]}  dxe4 {[%clk 0:01:56]} 20. Rxe4 {[%clk 0:01:35]}  Qd5 {[%clk 0:01:45]} 21. Qe2 {[%clk 0:01:31]}  Qxb3 {[%clk 0:01:30]} 22. Rd1 {[%clk 0:01:00]}  Bf8 {[%clk 0:01:03]} 23. Ne5 {[%clk 0:00:50]}  Qxh3 {[%clk 0:00:46]} 24. Qe3 {[%clk 0:00:16]}  Qxe3 {[%clk 0:00:41]} 25. Rxe3 {[%clk 0:00:16]}  Bh6 {[%clk 0:00:30]} 26. Ree1 {[%clk 0:00:12]}  Ng5 {[%clk 0:00:20]} 27. Kg2 {[%clk 0:00:09]}  Rab8 {[%clk 0:00:17]} 28. Bc3 {[%clk 0:00:09]}  Rb3 {[%clk 0:00:17]} 29. Bb4 {[%clk 0:00:09]}  a5 {[%clk 0:00:15]} 30. Bxa5 {[%clk 0:00:09]}  Rxa3 {[%clk 0:00:16]} 31. Nxc6 {[%clk 0:00:08]}  Rxe1 {[%clk 0:00:08]} 32. Rxe1 {[%clk 0:00:09]}  Nf3 {[%clk 0:00:09]} 33. Re8+ {[%clk 0:00:09]}  Kg7 {[%clk 0:00:09]} 34. Bxc7 {[%clk 0:00:09]}  Nh4+ {[%clk 0:00:07]} 35. Kf1 {[%clk 0:00:08]}  Bg5 {[%clk 0:00:06]} 36. Be5+ {[%clk 0:00:07]}  f6 {[%clk 0:00:06]} 37. Re7+ {[%clk 0:00:06]}  Kh6 {[%clk 0:00:05]} 38. Bd6 {[%clk 0:00:07]}  Bd2 {[%clk 0:00:03]} 39. Ke2 {[%clk 0:00:06]}  Bc3 {[%clk 0:00:02]} 40. Rf7 {[%clk 0:00:06]}  Kg5 {[%clk 0:00:03]} 41. Be7 {[%clk 0:00:06]}  Kxg4 {[%clk 0:00:03]} 42. Bxf6 {[%clk 0:00:06]}  Nf5 {[%clk 0:00:04]} 43. Be5 {[%clk 0:00:04]}  h5 {[%clk 0:00:04]} 44. Rf6 {[%clk 0:00:04]}  g5 {[%clk 0:00:04]} 45. Rg6 {[%clk 0:00:03]}  Nh4 {[%clk 0:00:03]} 46. Rg8 {[%clk 0:00:02]}  Ra2+ {[%clk 0:00:04]} 47. Kd3 {[%clk 0:00:03]}  Be1 {[%clk 0:00:04]} 48. Bf6 {[%clk 0:00:03]}  Nf3 {[%clk 0:00:04]} 49. Ne5+ {[%clk 0:00:02]}  Nxe5+ {[%clk 0:00:02]} 50. dxe5 {[%clk 0:00:03]}  Bxf2 {[%clk 0:00:02]} 51. Rxg5+ {[%clk 0:00:03]}  Kf4 {[%clk 0:00:03]} 52. Rxh5 {[%clk 0:00:04]}  Bxc5 {[%clk 0:00:03]} 53. Rh4+ {[%clk 0:00:03]}  Kf5 {[%clk 0:00:03]} 54. Rc4 {[%clk 0:00:03]}  Bg1 {[%clk 0:00:02]} 55. Rc1 {[%clk 0:00:03]}  Bh2 {[%clk 0:00:02]} 56. Rf1+ {[%clk 0:00:04]}  Ke6 {[%clk 0:00:02]} 57. Re1 {[%clk 0:00:03]}  Ra3+ {[%clk 0:00:03]} 58. Kc4 {[%clk 0:00:04]}  Bg3 {[%clk 0:00:03]} 59. Re2 {[%clk 0:00:04]}  Ra4+ {[%clk 0:00:03]} 60. Kb5 {[%clk 0:00:04]}  Ra1 {[%clk 0:00:03]} 61. Rg2 {[%clk 0:00:03]}  Rb1+ {[%clk 0:00:03]} 62. Kc4 {[%clk 0:00:03]}  Rc1+ {[%clk 0:00:04]} 63. Kd3 {[%clk 0:00:03]}  Bxe5 {[%clk 0:00:04]} 64. Bxe5 {[%clk 0:00:03]}  Kxe5 {[%clk 0:00:05]} 65. Re2+ {[%clk 0:00:03]}  Kd5 {[%clk 0:00:05]} 66. Re8 {[%clk 0:00:04]}  Rd1+ {[%clk 0:00:05]} 67. Kc2 {[%clk 0:00:04]}  Rh1 {[%clk 0:00:06]} 68. Rd8+ {[%clk 0:00:05]}  Kc4 {[%clk 0:00:07]} 69. Rc8+ {[%clk 0:00:05]}  Kd4 {[%clk 0:00:08]} 70. Rd8+ {[%clk 0:00:06]}  Ke3 {[%clk 0:00:08]} 71. Re8+ {[%clk 0:00:07]}  Kf4 {[%clk 0:00:08]} 72. Rf8+ {[%clk 0:00:07]}  Ke5 {[%clk 0:00:09]} 73. Re8+ {[%clk 0:00:08]}  Kd6 {[%clk 0:00:10]} 74. Rd8+ {[%clk 0:00:08]}  Kc7 {[%clk 0:00:10]} 75. Rd3 {[%clk 0:00:09]}  Rh2+ {[%clk 0:00:10]} 76. Rd2 {[%clk 0:00:09]}  Rh6 {[%clk 0:00:11]} 77. Rd3 {[%clk 0:00:10]}  Kb6 {[%clk 0:00:11]} 78. Rb3+ {[%clk 0:00:10]}  Kc5 {[%clk 0:00:12]} 79. Rc3+ {[%clk 0:00:11]}  Kd4 {[%clk 0:00:12]} 80. Rd3+ {[%clk 0:00:11]}  Ke4 {[%clk 0:00:13]} 81. Rd8 {[%clk 0:00:12]}  Rc6+ {[%clk 0:00:13]} 82. Kd2 {[%clk 0:00:12]} 1/2-1/2


[Site "https://www.chess.com"]

[Event "Titled Tuesday Blitz May 4 2021"]
[White "Steil-Antoni, Fiona"]
[Black "elohunter1999"]
[WhiteFideId "4001249"]
[WhiteElo "2059"]
[BlackElo "2495"]
[Result "0-1"]
[Round "01"]
[TimeControl "180+1"]
[Date "2021.05.04"]
[WhiteClock "0:00:02"]
[BlackClock "0:01:24"]

1. e4 {[%clk 0:02:58]}  d6 {[%clk 0:02:59]} 2. d4 {[%clk 0:02:56]}  Nf6 {[%clk 0:02:58]} 3. Bd3 {[%clk 0:02:52]}  e5 {[%clk 0:02:54]} 4. c3 {[%clk 0:02:38]}  d5 {[%clk 0:02:50]} 5. dxe5 {[%clk 0:02:05]}  Nxe4 {[%clk 0:02:46]} 6. Bf4 {[%clk 0:01:47]}  Nc6 {[%clk 0:02:40]} 7. Nf3 {[%clk 0:01:28]}  Bc5 {[%clk 0:02:27]} 8. O-O {[%clk 0:01:23]}  O-O {[%clk 0:02:23]} 9. Nbd2 {[%clk 0:01:08]}  Bf5 {[%clk 0:02:10]} 10. Nb3 {[%clk 0:00:43]}  Bb6 {[%clk 0:02:07]} 11. Nbd4 {[%clk 0:00:34]}  Bg4 {[%clk 0:01:58]} 12. h3 {[%clk 0:00:15]}  Bh5 {[%clk 0:01:58]} 13. Re1 {[%clk 0:00:14]}  Bg6 {[%clk 0:01:54]} 14. Re2 {[%clk 0:00:09]}  Qe7 {[%clk 0:01:35]} 15. Nxc6 {[%clk 0:00:09]}  bxc6 {[%clk 0:01:35]} 16. Nd4 {[%clk 0:00:10]}  c5 {[%clk 0:01:32]} 17. Nf3 {[%clk 0:00:07]}  f6 {[%clk 0:01:30]} 18. exf6 {[%clk 0:00:06]}  Qxf6 {[%clk 0:01:30]} 19. Be3 {[%clk 0:00:03]}  Rae8 {[%clk 0:01:28]} 20. b4 {[%clk 0:00:02]}  Nxc3 {[%clk 0:01:26]} 21. Qc2 {[%clk 0:00:02]}  Nxe2+ {[%clk 0:01:25]} 22. Bxe2 {[%clk 0:00:02]}  Bxc2 {[%clk 0:01:24]} 0-1


[Site "https://www.chess.com"]

[Event "Titled Tuesday Blitz May 4 2021"]
[White "Stepak, Yedael"]
[Black "Srihari L R"]
[WhiteFideId "2800454"]
[BlackFideId "46617116"]
[WhiteElo "2146"]
[BlackElo "2121"]
[Result "0-1"]
[Round "01"]
[TimeControl "180+1"]
[Date "2021.05.04"]
[WhiteClock "0:00:32"]
[BlackClock "0:00:07"]

1. d4 {[%clk 0:02:59]}  d6 {[%clk 0:02:57]} 2. c4 {[%clk 0:02:58]}  e5 {[%clk 0:02:57]} 3. d5 {[%clk 0:02:58]}  g6 {[%clk 0:02:56]} 4. Nc3 {[%clk 0:02:58]}  Bg7 {[%clk 0:02:55]} 5. e4 {[%clk 0:02:57]}  Ne7 {[%clk 0:02:55]} 6. Be3 {[%clk 0:02:56]}  f5 {[%clk 0:02:53]} 7. f3 {[%clk 0:02:56]}  O-O {[%clk 0:02:52]} 8. Qd2 {[%clk 0:02:56]}  a5 {[%clk 0:02:53]} 9. Bd3 {[%clk 0:02:55]}  Na6 {[%clk 0:02:49]} 10. a3 {[%clk 0:02:50]}  Nc5 {[%clk 0:02:47]} 11. Bc2 {[%clk 0:02:50]}  b6 {[%clk 0:02:44]} 12. Rb1 {[%clk 0:02:49]}  f4 {[%clk 0:02:33]} 13. Bf2 {[%clk 0:02:48]}  g5 {[%clk 0:02:33]} 14. h3 {[%clk 0:02:48]}  Qe8 {[%clk 0:02:29]} 15. b4 {[%clk 0:02:44]}  axb4 {[%clk 0:02:29]} 16. axb4 {[%clk 0:02:43]}  Nd7 {[%clk 0:02:29]} 17. Nge2 {[%clk 0:02:37]}  Nf6 {[%clk 0:02:28]} 18. Nb5 {[%clk 0:02:31]}  Qd8 {[%clk 0:02:20]} 19. Qc3 {[%clk 0:02:27]}  Bd7 {[%clk 0:02:16]} 20. O-O {[%clk 0:02:18]}  Ng6 {[%clk 0:02:08]} 21. Ra1 {[%clk 0:02:16]}  Rxa1 {[%clk 0:02:07]} 22. Rxa1 {[%clk 0:02:13]}  h5 {[%clk 0:02:06]} 23. Kf1 {[%clk 0:02:11]}  g4 {[%clk 0:02:05]} 24. hxg4 {[%clk 0:02:11]}  hxg4 {[%clk 0:02:05]} 25. Ra7 {[%clk 0:02:05]}  Ne8 {[%clk 0:01:36]} 26. Qa3 {[%clk 0:01:57]}  g3 {[%clk 0:01:14]} 27. Bg1 {[%clk 0:01:55]}  Nh4 {[%clk 0:01:13]} 28. Ra8 {[%clk 0:01:40]}  Qg5 {[%clk 0:00:58]} 29. Ra7 {[%clk 0:01:32]}  Qd8 {[%clk 0:00:27]} 30. Qc1 {[%clk 0:01:22]}  Qc8 {[%clk 0:00:25]} 31. Nbc3 {[%clk 0:01:13]}  Nxg2 {[%clk 0:00:21]} 32. Nxg3 {[%clk 0:01:06]}  Bh3 {[%clk 0:00:19]} 33. Ke2 {[%clk 0:01:05]}  fxg3 {[%clk 0:00:19]} 34. Qg5 {[%clk 0:01:02]}  Nf4+ {[%clk 0:00:18]} 35. Kd2 {[%clk 0:01:02]}  Rf6 {[%clk 0:00:13]} 36. Bxb6 {[%clk 0:00:59]}  Rg6 {[%clk 0:00:12]} 37. Qh4 {[%clk 0:00:59]}  cxb6 {[%clk 0:00:10]} 38. c5 {[%clk 0:00:55]}  bxc5 {[%clk 0:00:10]} 39. bxc5 {[%clk 0:00:55]}  Qxc5 {[%clk 0:00:10]} 40. Ra8 {[%clk 0:00:54]}  Bd7 {[%clk 0:00:10]} 41. Qd8 {[%clk 0:00:52]}  g2 {[%clk 0:00:08]} 42. Qxd7 {[%clk 0:00:49]}  Qd4+ {[%clk 0:00:08]} 43. Kc1 {[%clk 0:00:47]}  g1=Q+ {[%clk 0:00:08]} 44. Kb2 {[%clk 0:00:47]}  Nd3+ {[%clk 0:00:08]} 45. Bxd3 {[%clk 0:00:45]}  Rg2+ {[%clk 0:00:08]} 46. Kb3 {[%clk 0:00:43]}  Qxc3+ {[%clk 0:00:06]} 47. Kxc3 {[%clk 0:00:42]}  Qc1+ {[%clk 0:00:07]} 48. Kb4 {[%clk 0:00:41]}  Rb2+ {[%clk 0:00:06]} 49. Ka5 {[%clk 0:00:37]}  Qc3+ {[%clk 0:00:06]} 50. Ka6 {[%clk 0:00:35]}  Qa3+ {[%clk 0:00:07]} 51. Qa4 {[%clk 0:00:32]}  Qxa4# {[%clk 0:00:07]} 0-1


[Site "https://www.chess.com"]

[Event "Titled Tuesday Blitz May 4 2021"]
[White "Steven_Rojas"]
[Black "Bortnyk, Olexandr"]
[BlackFideId "14120828"]
[WhiteElo "2464"]
[BlackElo "2723"]
[Result "0-1"]
[Round "01"]
[TimeControl "180+1"]
[Date "2021.05.04"]
[WhiteClock "0:00:02"]
[BlackClock "0:00:12"]

1. d4 {[%clk 0:03:00]}  d6 {[%clk 0:02:57]} 2. c4 {[%clk 0:02:53]}  e5 {[%clk 0:02:56]} 3. Nf3 {[%clk 0:02:46]}  e4 {[%clk 0:02:57]} 4. Ng5 {[%clk 0:02:24]}  f5 {[%clk 0:02:56]} 5. h4 {[%clk 0:02:12]}  Be7 {[%clk 0:02:54]} 6. e3 {[%clk 0:01:57]}  g6 {[%clk 0:02:44]} 7. Nc3 {[%clk 0:01:30]}  Bxg5 {[%clk 0:02:32]} 8. hxg5 {[%clk 0:01:30]}  Qxg5 {[%clk 0:02:33]} 9. c5 {[%clk 0:01:28]}  Qd8 {[%clk 0:01:44]} 10. Bd2 {[%clk 0:01:24]}  d5 {[%clk 0:01:30]} 11. b4 {[%clk 0:01:20]}  c6 {[%clk 0:01:28]} 12. b5 {[%clk 0:01:16]}  Nf6 {[%clk 0:01:27]} 13. Be2 {[%clk 0:01:07]}  O-O {[%clk 0:01:26]} 14. Qb3 {[%clk 0:01:03]}  Kg7 {[%clk 0:01:15]} 15. g3 {[%clk 0:01:03]}  h5 {[%clk 0:00:56]} 16. a4 {[%clk 0:01:02]}  Nbd7 {[%clk 0:00:49]} 17. a5 {[%clk 0:01:02]}  a6 {[%clk 0:00:49]} 18. b6 {[%clk 0:01:02]}  Rf7 {[%clk 0:00:47]} 19. Kd1 {[%clk 0:01:01]}  Nf8 {[%clk 0:00:48]} 20. Kc2 {[%clk 0:01:01]}  Ne6 {[%clk 0:00:48]} 21. Rag1 {[%clk 0:00:58]}  Ng5 {[%clk 0:00:49]} 22. Kb2 {[%clk 0:00:57]}  Be6 {[%clk 0:00:49]} 23. Qd1 {[%clk 0:00:57]}  Qe7 {[%clk 0:00:49]} 24. Na2 {[%clk 0:00:52]}  Ng4 {[%clk 0:00:49]} 25. Rg2 {[%clk 0:00:51]}  Qf6 {[%clk 0:00:48]} 26. Nb4 {[%clk 0:00:51]}  Bd7 {[%clk 0:00:48]} 27. Nc2 {[%clk 0:00:52]}  Ne6 {[%clk 0:00:48]} 28. Kb3 {[%clk 0:00:50]}  Rh8 {[%clk 0:00:47]} 29. Ne1 {[%clk 0:00:43]}  Ng5 {[%clk 0:00:44]} 30. Rh4 {[%clk 0:00:41]}  Be6 {[%clk 0:00:44]} 31. Rh1 {[%clk 0:00:38]}  Rff8 {[%clk 0:00:44]} 32. Kb4 {[%clk 0:00:36]}  Bf7 {[%clk 0:00:43]} 33. Rh4 {[%clk 0:00:36]}  Ne6 {[%clk 0:00:43]} 34. Rh1 {[%clk 0:00:36]}  Rfg8 {[%clk 0:00:38]} 35. Bc1 {[%clk 0:00:34]}  Kf8 {[%clk 0:00:38]} 36. f3 {[%clk 0:00:24]}  exf3 {[%clk 0:00:36]} 37. Nxf3 {[%clk 0:00:25]}  Kg7 {[%clk 0:00:34]} 38. Qf1 {[%clk 0:00:25]}  Re8 {[%clk 0:00:34]} 39. Bb2 {[%clk 0:00:25]}  Nxe3 {[%clk 0:00:33]} 40. Qg1 {[%clk 0:00:25]}  Nxg2 {[%clk 0:00:34]} 41. Qxg2 {[%clk 0:00:26]}  Ng5 {[%clk 0:00:34]} 42. Ne5 {[%clk 0:00:26]}  Ne4 {[%clk 0:00:34]} 43. Nf3 {[%clk 0:00:10]}  Nxc5 {[%clk 0:00:30]} 44. Bf1 {[%clk 0:00:07]}  Ne4 {[%clk 0:00:28]} 45. Ne5 {[%clk 0:00:07]}  c5+ {[%clk 0:00:14]} 46. Ka3 {[%clk 0:00:05]}  c4 {[%clk 0:00:14]} 47. Ka2 {[%clk 0:00:05]}  Qd6 {[%clk 0:00:14]} 48. Ba3 {[%clk 0:00:04]}  Qf6 {[%clk 0:00:14]} 49. Bb2 {[%clk 0:00:04]}  Qg5 {[%clk 0:00:14]} 50. Qc2 {[%clk 0:00:03]}  Qxg3 {[%clk 0:00:13]} 51. Rh3 {[%clk 0:00:03]}  Qe1 {[%clk 0:00:12]} 52. Bxc4 {[%clk 0:00:03]}  dxc4 {[%clk 0:00:12]} 53. d5 {[%clk 0:00:04]}  c3 {[%clk 0:00:12]} 54. Bxc3 {[%clk 0:00:02]}  Nxc3+ {[%clk 0:00:12]} 55. Kb2 {[%clk 0:00:02]}  Qxe5 {[%clk 0:00:12]} 56. Rxc3 {[%clk 0:00:02]}  Rc8 {[%clk 0:00:12]} 0-1


[Site "https://www.chess.com"]

[Event "Titled Tuesday Blitz May 4 2021"]
[White "Suasnabar, Jesus"]
[Black "Suarez Uriel, Adrian"]
[WhiteFideId "3800776"]
[BlackFideId "22230874"]
[WhiteElo "2002"]
[BlackElo "2299"]
[Result "0-1"]
[Round "01"]
[TimeControl "180+1"]
[Date "2021.05.04"]
[WhiteClock "0:00:02"]
[BlackClock "0:00:59"]

1. d4 {[%clk 0:02:57]}  Nf6 {[%clk 0:02:57]} 2. Nf3 {[%clk 0:02:56]}  b6 {[%clk 0:02:57]} 3. c4 {[%clk 0:02:56]}  e6 {[%clk 0:02:53]} 4. a3 {[%clk 0:02:55]}  Bb7 {[%clk 0:02:52]} 5. Nc3 {[%clk 0:02:55]}  g6 {[%clk 0:02:52]} 6. Qc2 {[%clk 0:02:48]}  c5 {[%clk 0:02:51]} 7. e4 {[%clk 0:02:44]}  cxd4 {[%clk 0:02:51]} 8. Nxd4 {[%clk 0:02:44]}  Nc6 {[%clk 0:02:48]} 9. Nxc6 {[%clk 0:02:28]}  Bxc6 {[%clk 0:02:39]} 10. Be2 {[%clk 0:02:28]}  Qb8 {[%clk 0:02:22]} 11. O-O {[%clk 0:02:20]}  Bd6 {[%clk 0:02:22]} 12. h3 {[%clk 0:02:13]}  Be5 {[%clk 0:02:21]} 13. Bh6 {[%clk 0:01:18]}  d6 {[%clk 0:02:02]} 14. Rad1 {[%clk 0:00:59]}  Ke7 {[%clk 0:01:55]} 15. f4 {[%clk 0:00:51]}  Bxc3 {[%clk 0:01:54]} 16. Qxc3 {[%clk 0:00:44]}  Nxe4 {[%clk 0:01:54]} 17. Qg7 {[%clk 0:00:08]}  Qg8 {[%clk 0:01:49]} 18. Bf3 {[%clk 0:00:03]}  Qxg7 {[%clk 0:01:45]} 19. Bxg7 {[%clk 0:00:02]}  Rhg8 {[%clk 0:01:46]} 20. Bd4 {[%clk 0:00:01]}  f5 {[%clk 0:01:44]} 21. Rfe1 {[%clk 0:00:01]}  g5 {[%clk 0:01:41]} 22. b4 {[%clk 0:00:02]}  gxf4 {[%clk 0:01:39]} 23. c5 {[%clk 0:00:01]}  bxc5 {[%clk 0:01:39]} 24. bxc5 {[%clk 0:00:01]}  d5 {[%clk 0:01:30]} 25. Bxe4 {[%clk 0:00:02]}  dxe4 {[%clk 0:01:22]} 26. Be5 {[%clk 0:00:03]}  f3 {[%clk 0:01:19]} 27. Bd6+ {[%clk 0:00:03]}  Kf7 {[%clk 0:01:18]} 28. Rd2 {[%clk 0:00:03]}  fxg2 {[%clk 0:01:11]} 29. Kh2 {[%clk 0:00:04]}  Kf6 {[%clk 0:01:00]} 30. Rxg2 {[%clk 0:00:02]}  Rxg2+ {[%clk 0:01:00]} 31. Kxg2 {[%clk 0:00:03]}  e5 {[%clk 0:01:01]} 32. Kf2 {[%clk 0:00:03]}  f4 {[%clk 0:01:00]} 33. Rb1 {[%clk 0:00:03]}  e3+ {[%clk 0:01:00]} 34. Ke1 {[%clk 0:00:02]}  Rg8 {[%clk 0:00:59]} 0-1


[Site "https://www.chess.com"]

[Event "Titled Tuesday Blitz May 4 2021"]
[White "Svane, Rasmus"]
[Black "Ambrogi, Agustin"]
[WhiteFideId "4657101"]
[BlackFideId "170933"]
[WhiteElo "2669"]
[BlackElo "2214"]
[Result "1-0"]
[Round "01"]
[TimeControl "180+1"]
[Date "2021.05.04"]
[WhiteClock "0:00:18"]
[BlackClock "0:00:07"]

1. Nf3 {[%clk 0:03:00]}  e6 {[%clk 0:02:59]} 2. g3 {[%clk 0:03:01]}  f5 {[%clk 0:02:59]} 3. Bg2 {[%clk 0:03:02]}  Nf6 {[%clk 0:02:57]} 4. O-O {[%clk 0:03:02]}  Be7 {[%clk 0:02:57]} 5. c4 {[%clk 0:03:02]}  O-O {[%clk 0:02:57]} 6. b3 {[%clk 0:03:01]}  d6 {[%clk 0:02:56]} 7. d4 {[%clk 0:03:00]}  Ne4 {[%clk 0:02:53]} 8. Bb2 {[%clk 0:03:00]}  a5 {[%clk 0:02:50]} 9. a3 {[%clk 0:02:59]}  Bf6 {[%clk 0:02:41]} 10. Nbd2 {[%clk 0:02:58]}  Nc6 {[%clk 0:02:37]} 11. e3 {[%clk 0:02:56]}  Nxd2 {[%clk 0:02:36]} 12. Qxd2 {[%clk 0:02:54]}  Qe7 {[%clk 0:02:35]} 13. b4 {[%clk 0:02:47]}  a4 {[%clk 0:02:33]} 14. Rac1 {[%clk 0:02:39]}  e5 {[%clk 0:02:31]} 15. Rfd1 {[%clk 0:01:56]}  e4 {[%clk 0:02:27]} 16. Ne1 {[%clk 0:01:54]}  Bd7 {[%clk 0:02:27]} 17. Bc3 {[%clk 0:01:38]}  Be8 {[%clk 0:02:23]} 18. b5 {[%clk 0:01:34]}  Nb8 {[%clk 0:02:23]} 19. Nc2 {[%clk 0:01:33]}  Bh5 {[%clk 0:02:21]} 20. Re1 {[%clk 0:01:33]}  Nd7 {[%clk 0:02:21]} 21. Nb4 {[%clk 0:01:34]}  Nb6 {[%clk 0:02:16]} 22. c5 {[%clk 0:01:17]}  Nc4 {[%clk 0:02:09]} 23. Qa2 {[%clk 0:01:10]}  Bf7 {[%clk 0:02:08]} 24. Qa1 {[%clk 0:01:04]}  d5 {[%clk 0:02:02]} 25. Bf1 {[%clk 0:01:03]}  Na5 {[%clk 0:01:54]} 26. Rcd1 {[%clk 0:00:58]}  Nb3 {[%clk 0:01:52]} 27. Qb2 {[%clk 0:00:58]}  Kh8 {[%clk 0:01:48]} 28. Be2 {[%clk 0:00:49]}  g5 {[%clk 0:01:48]} 29. f3 {[%clk 0:00:46]}  f4 {[%clk 0:01:44]} 30. fxe4 {[%clk 0:00:44]}  dxe4 {[%clk 0:01:44]} 31. d5 {[%clk 0:00:43]}  Bg6 {[%clk 0:01:40]} 32. d6 {[%clk 0:00:42]}  cxd6 {[%clk 0:01:38]} 33. cxd6 {[%clk 0:00:41]}  Qg7 {[%clk 0:01:38]} 34. Bxf6 {[%clk 0:00:39]}  Rxf6 {[%clk 0:01:31]} 35. Bc4 {[%clk 0:00:31]}  Nc5 {[%clk 0:01:22]} 36. Qe5 {[%clk 0:00:24]}  f3 {[%clk 0:01:17]} 37. Rf1 {[%clk 0:00:23]}  Re8 {[%clk 0:01:11]} 38. Qxc5 {[%clk 0:00:22]}  Ref8 {[%clk 0:00:48]} 39. Rf2 {[%clk 0:00:22]}  h5 {[%clk 0:00:42]} 40. Nd5 {[%clk 0:00:22]}  Rf5 {[%clk 0:00:40]} 41. Qd4 {[%clk 0:00:22]}  h4 {[%clk 0:00:37]} 42. Ne7 {[%clk 0:00:21]}  R5f6 {[%clk 0:00:22]} 43. d7 {[%clk 0:00:20]}  Rd8 {[%clk 0:00:20]} 44. Nxg6+ {[%clk 0:00:20]}  Rxg6 {[%clk 0:00:17]} 45. Qxg7+ {[%clk 0:00:19]}  Rxg7 {[%clk 0:00:17]} 46. Rfd2 {[%clk 0:00:19]}  hxg3 {[%clk 0:00:10]} 47. hxg3 {[%clk 0:00:20]}  Rh7 {[%clk 0:00:09]} 48. Be6 {[%clk 0:00:20]}  Kg7 {[%clk 0:00:08]} 49. Bf5 {[%clk 0:00:20]}  Rh6 {[%clk 0:00:06]} 50. Rd6 {[%clk 0:00:18]}  Rdh8 {[%clk 0:00:07]} 51. Rxh6 {[%clk 0:00:18]}  Rxh6 {[%clk 0:00:07]} 52. d8=Q {[%clk 0:00:18]} 1-0


[Site "https://www.chess.com"]